[Event "EYTCC U12 Open 2019"]
[Site "Pardubice"]
[Date "2019.07.14"]
[Round "4.19"]
[White "Thatte, Nishchal"]
[Black "Brozka, Karel"]
[Result "1/2-1/2"]
[ECO "B12"]
[WhiteElo "1686"]
[BlackElo "1816"]
[Annotator "NA"]
[PlyCount "146"]
[EventDate "2019.07.11"]
[EventType "swiss"]
[EventCountry "CZE"]
[SourceTitle "playchess.com"]
[Source "ChessBase"]
[SourceQuality "1"]
[WhiteTeam "England"]
[BlackTeam "Czech Republic"]
[WhiteTeamCountry "ENG"]
[BlackTeamCountry "CZE"]
[TimeControl "40/5400+30:1800+30"]

1. e4 {[%emt 0:00:00]} c6 {[%emt 0:00:00]} 2. d4 {[%emt 0:00:00]} d5 {[%emt 0:00:00]} 3. e5 {[%emt 0:00:00]} c5 {[%emt 0:00:06]} 4. dxc5 {[%emt 0:00:00]} Nc6 {[%emt 0:00:31]} 5. a3 {[%emt 0:00:05]} a5 {[%emt 0:04:06]} 6. Nf3 {[%emt 0:01:12]} Bg4 {[%emt 0:00:24]} 7. Be2 {[%emt 0:02:09]} e6 {[%emt 0:00:38]} 8. Be3 {[%emt 0:01:39]} Bxf3 {[%emt 0:08:16]} 9. Bxf3 {[%emt 0:00:42]} Nxe5 {[%emt 0:00:30]} 10. Be2 {[%emt 0:07:24]} Nf6 {[%emt 0:01:37]} 11. Nc3 {[%emt 0:02:46]} Be7 {[%emt 0:03:46]} 12. Na4 {[%emt 0:08:23]} Ned7 {[%emt 0:07:05]} 13. O-O {[%emt 0:01:32]} O-O {[%emt 0:02:31]} 14. c4 {[%emt 0:05:37]} Rc8 {[%emt 0:11:38]} 15. b4 {[%emt 0:00:50]} axb4 {[%emt 0:02:42]} 16. axb4 {[%emt 0:00:07]} dxc4 {[%emt 0:01:39]} 17. Bf3 {[%emt 0:07:28]} Ne5 {[%emt 0:12:56]} 18. Bxb7 {[%emt 0:02:20]} Rc7 {[%emt 0:00:53]} 19. Bf3 {[%emt 0:08:48]} Qxd1 {[%emt 0:02:57]} 20. Bxd1 {[%emt 0:01:15]} Nd5 {[%emt 0:00:45]} 21. Bd2 {[%emt 0:04:33]} Nd3 {[%emt 0:01:00]} 22. Be2 {[%emt 0:03:55]} N5xb4 {[%emt 0:04:12]} 23. Bxb4 {[%emt 0:00:30]} Nxb4 {[%emt 0:00:12]} 24. Bxc4 {[%emt 0:00:29]} Bxc5 {[%emt 0:00:19]} 25. Nxc5 {[%emt 0:00:16]} Rxc5 {[%emt 0:00:01]} 26. Be2 {[%emt 0:00:31]} Rc2 {[%emt 0:00:51]} 27. Bf3 {[%emt 0:00:10]} g6 {[%emt 0:01:31]} 28. h3 {[%emt 0:01:58]} Rfc8 29. Ra8 {[%emt 0:03:10]} Rxa8 {[%emt 0:03:15]} 30. Bxa8 {[%emt 0:00:01]} Kg7 {[%emt 0:01:07]} 31. Rb1 {[%emt 0:01:48]} Nc6 {[%emt 0:01:54]} 32. Rb6 {[%emt 0:02:16]} Nd4 {[%emt 0:01:58]} 33. Be4 {[%emt 0:00:48]} Rd2 {[%emt 0:03:37]} 34. Rb7 {[%emt 0:02:14]} Kf6 {[%emt 0:00:50]} 35. g3 {[%emt 0:05:21]} h5 {[%emt 0:04:12]} 36. Rc7 {[%emt 0:04:32]} Re2 {[%emt 0:03:29]} 37. Ba8 {[%emt 0:00:36]} Nf5 {[%emt 0:01:47]} 38. Kg2 {[%emt 0:00:32]} Ra2 {[%emt 0:00:43]} 39. Bb7 {[%emt 0:02:26]} Ne3+ {[%emt 0:02:33]} 40. Kg1 {[%emt 0:02:06]} Nd1 {[%emt 0:03:41]} 41. Rc1 {[%emt 0:30:51]} Nb2 {[%emt 0:32:46]} 42. Rc2 {[%emt 0:00:34]} Ra1+ {[%emt 0:00:09]} 43. Kg2 {[%emt 0:00:01]} Nd3 {[%emt 0:00:12]} 44. Re2 {[%emt 0:02:14]} Ne5 {[%emt 0:05:06]} 45. Be4 {[%emt 0:03:16]} Ra5 {[%emt 0:02:14]} 46. Rc2 {[%emt 0:01:04]} Ra4 {[%emt 0:00:47]} 47. Re2 {[%emt 0:00:09]} Rd4 {[%emt 0:00:32]} 48. Bc2 {[%emt 0:01:35]} h4 {[%emt 0:00:13]} 49. gxh4 {[%emt 0:00:40]} Rxh4 {[%emt 0:00:22]} 50. Kg3 {[%emt 0:00:11]} Rc4 {[%emt 0:00:22]} 51. Be4 {[%emt 0:01:41]} Rc3+ {[%emt 0:00:22]} 52. Kg2 {[%emt 0:01:14]} g5 {[%emt 0:00:26]} 53. Bb1 {[%emt 0:01:10]} Nc6 {[%emt 0:01:44]} 54. Rc2 {[%emt 0:00:52]} Rxc2 {[%emt 0:00:46]} 55. Bxc2 {[%emt 0:00:01]} Nd4 {[%emt 0:00:05]} 56. Bd3 {[%emt 0:00:21]} Ke5 {[%emt 0:00:19]} 57. Kg3 {[%emt 0:00:30]} f5 {[%emt 0:00:04]} 58. Bb1 {[%emt 0:00:39]} Ne2+ {[%emt 0:00:09]} 59. Kf3 {[%emt 0:00:14]} Nf4 {[%emt 0:00:17]} 60. Kg3 {[%emt 0:00:08]} Nh5+ {[%emt 0:00:26]} 61. Kf3 {[%emt 0:00:53]} Kf6 {[%emt 0:01:48]} 62. Kg2 {[%emt 0:00:44]} e5 {[%emt 0:00:08]} 63. Bc2 {[%emt 0:00:26]} e4 {[%emt 0:00:36]} 64. Bd1 {[%emt 0:00:09]} Nf4+ {[%emt 0:00:10]} 65. Kg3 {[%emt 0:00:02]} Ng6 {[%emt 0:00:11]} 66. Bc2 {[%emt 0:00:23]} Ke5 {[%emt 0:00:24]} 67. Ba4 {[%emt 0:00:18]} Nh4 {[%emt 0:01:11]} 68. Bd1 {[%emt 0:00:14]} Kd4 {[%emt 0:00:58]} 69. Be2 {[%emt 0:00:08]} Ng6 {[%emt 0:00:00]} 70. Bh5 {[%emt 0:00:00]} Nh4 {[%emt 0:00:00]} 71. Be2 {[%emt 0:00:00]} Kc3 {[%emt 0:00:00]} 72. Bb5 {[%emt 0:00:00]} Kd2 73. Bc6 {[%emt 0:00:00]} Ke2 {[%emt 0:00:00]} 1/2-1/2

[Event "EYTCC U12 Open 2019"]
[Site "Pardubice"]
[Date "2019.07.14"]
[Round "4.20"]
[White "Janous, Marek"]
[Black "Trivedi, Aarnavh"]
[Result "0-1"]
[ECO "B13"]
[WhiteElo "1717"]
[BlackElo "1669"]
[Annotator "NA"]
[PlyCount "116"]
[EventDate "2019.07.11"]
[EventType "swiss"]
[EventCountry "CZE"]
[SourceTitle "playchess.com"]
[Source "ChessBase"]
[SourceQuality "1"]
[WhiteTeam "Czech Republic"]
[BlackTeam "England"]
[WhiteTeamCountry "CZE"]
[BlackTeamCountry "ENG"]
[TimeControl "40/5400+30:1800+30"]

1. e4 {[%emt 0:00:00]} c6 {[%emt 0:00:00]} 2. d4 {[%emt 0:00:00]} d5 {[%emt 0:00:00]} 3. exd5 {[%emt 0:00:07]} cxd5 {[%emt 0:00:02]} 4. c4 {[%emt 0:00:14]} Nf6 {[%emt 0:00:15]} 5. Nc3 {[%emt 0:00:55]} Nc6 {[%emt 0:00:38]} 6. Nf3 {[%emt 0:00:06]} Bg4 {[%emt 0:02:02]} 7. cxd5 {[%emt 0:01:30]} Nxd5 {[%emt 0:01:04]} 8. Qb3 {[%emt 0:01:30]} Bxf3 {[%emt 0:03:21]} 9. gxf3 {[%emt 0:00:09]} Nb6 {[%emt 0:03:14]} 10. d5 {[%emt 0:11:33]} Nd4 {[%emt 0:02:31]} 11. Qd1 {[%emt 0:01:03]} e5 {[%emt 0:06:10]} 12. dxe6 {[%emt 0:03:25]} Nxe6 {[%emt 0:02:07]} 13. Bb5+ {[%emt 0:00:41]} Nd7 {[%emt 0:01:13]} 14. O-O {[%emt 0:00:32]} a6 {[%emt 0:04:19]} 15. Bc4 {[%emt 0:01:16]} Qf6 {[%emt 0:15:16]} 16. Re1 {[%emt 0:29:22]} Bb4 {[%emt 0:20:54]} 17. Bxe6 {[%emt 0:09:44]} fxe6 {[%emt 0:07:45]} 18. Qb3 {[%emt 0:03:46]} Be7 {[%emt 0:13:32]} 19. Qxb7 {[%emt 0:11:06]} Rd8 {[%emt 0:00:37]} 20. Qc6 {[%emt 0:03:15]} Kf7 {[%emt 0:00:26]} 21. Bf4 {[%emt 0:10:52]} Nc5 {[%emt 0:02:27]} 22. Bg3 {[%emt 0:00:43]} Rc8 {[%emt 0:03:53]} 23. Qb6 {[%emt 0:01:09]} Qxf3 {[%emt 0:02:57]} 24. Re3 {[%emt 0:05:03]} Qf5 {[%emt 0:00:18]} 25. Rae1 {[%emt 0:00:45]} Rhe8 {[%emt 0:01:37]} 26. Rd1 {[%emt 0:01:36]} h5 {[%emt 0:00:28]} 27. b4 {[%emt 0:00:32]} h4 {[%emt 0:00:39]} 28. Be5 {[%emt 0:00:59]} Na4 {[%emt 0:00:29]} 29. Rdd3 {[%emt 0:01:00]} Nxb6 {[%emt 0:00:28]} 30. Rf3 {[%emt 0:00:11]} Red8 {[%emt 0:00:33]} 31. Rxf5+ {[%emt 0:00:08]} exf5 {[%emt 0:00:08]} 32. Rf3 {[%emt 0:01:26]} g6 {[%emt 0:01:02]} 33. a3 {[%emt 0:00:36]} Bf6 {[%emt 0:00:25]} 34. Bxf6 {[%emt 0:00:21]} Kxf6 {[%emt 0:00:19]} 35. Ne4+ {[%emt 0:00:39]} Ke5 {[%emt 0:04:27]} 36. Nc5 {[%emt 0:00:37]} Rd1+ {[%emt 0:01:18]} 37. Kg2 {[%emt 0:00:13]} Nd5 {[%emt 0:00:32]} 38. h3 {[%emt 0:01:18]} Nf4+ {[%emt 0:00:48]} 39. Kh2 {[%emt 0:00:07]} Rxc5 40. bxc5 {[%emt 0:00:07]} Rd3 {[%emt 0:00:32]} 41. Rxd3 {[%emt 0:30:37]} Nxd3 {[%emt 0:30:11]} 42. c6 {[%emt 0:00:34]} Kd6 {[%emt 0:00:07]} 43. Kg2 {[%emt 0:00:14]} Kxc6 {[%emt 0:00:24]} 44. Kf3 {[%emt 0:00:48]} Kd5 {[%emt 0:00:25]} 45. Ke3 {[%emt 0:00:33]} Nxf2 {[%emt 0:00:22]} 46. Kxf2 {[%emt 0:00:36]} Ke4 {[%emt 0:00:17]} 47. Ke2 {[%emt 0:00:22]} f4 48. a4 {[%emt 0:00:33]} a5 {[%emt 0:00:10]} 49. Kf2 {[%emt 0:00:22]} f3 {[%emt 0:00:08]} 50. Kf1 {[%emt 0:00:08]} Kf4 {[%emt 0:00:15]} 51. Kf2 {[%emt 0:00:06]} g5 {[%emt 0:00:08]} 52. Kf1 {[%emt 0:00:06]} Kg3 {[%emt 0:00:08]} 53. Kg1 {[%emt 0:00:27]} Kxh3 {[%emt 0:00:14]} 54. Kh1 {[%emt 0:00:06]} Kg3 {[%emt 0:00:11]} 55. Kg1 {[%emt 0:00:05]} f2+ {[%emt 0:00:03]} 56. Kf1 {[%emt 0:00:08]} h3 {[%emt 0:00:08]} 57. Ke2 {[%emt 0:00:17]} Kg2 {[%emt 0:00:04]} 58. Ke3 {[%emt 0:00:21]} f1=Q {[%emt 0:00:38]} 0-1

[Event "EYTCC U12 Open 2019"]
[Site "Pardubice"]
[Date "2019.07.14"]
[Round "4.21"]
[White "Herega, Nejc"]
[Black "Day, Tobias"]
[Result "1-0"]
[ECO "A80"]
[WhiteElo "1939"]
[BlackElo "1826"]
[Annotator "NA"]
[PlyCount "123"]
[EventDate "2019.07.11"]
[EventType "swiss"]
[EventCountry "CZE"]
[SourceTitle "playchess.com"]
[Source "ChessBase"]
[SourceQuality "1"]
[WhiteTeam "Slovenia"]
[BlackTeam "Czech Republic"]
[WhiteTeamCountry "SLO"]
[BlackTeamCountry "CZE"]
[TimeControl "40/5400+30:1800+30"]

1. d4 {[%emt 0:00:00]} f5 {[%emt 0:00:00]} 2. Nc3 {[%emt 0:00:00]} d5 {[%emt 0:01:04]} 3. Bg5 {[%emt 0:00:00]} Nf6 {[%emt 0:11:18]} 4. e3 {[%emt 0:01:31]} c6 {[%emt 0:09:22]} 5. Bd3 {[%emt 0:01:08]} e6 {[%emt 0:01:35]} 6. Nf3 {[%emt 0:00:38]} Be7 {[%emt 0:03:00]} 7. O-O {[%emt 0:00:56]} O-O {[%emt 0:04:42]} 8. Ne2 {[%emt 0:00:48]} h6 {[%emt 0:04:27]} 9. Bf4 {[%emt 0:04:43]} g5 {[%emt 0:02:52]} 10. Be5 {[%emt 0:04:19]} Nbd7 {[%emt 0:03:01]} 11. c4 {[%emt 0:04:13]} Qe8 {[%emt 0:08:31]} 12. cxd5 {[%emt 0:06:21]} cxd5 {[%emt 0:03:39]} 13. Rc1 {[%emt 0:05:59]} Qg6 {[%emt 0:03:26]} 14. Qc2 {[%emt 0:06:20]} Ne4 {[%emt 0:01:58]} 15. Bc7 {[%emt 0:09:10]} Bd6 {[%emt 0:11:30]} 16. Bxe4 {[%emt 0:05:00]} dxe4 {[%emt 0:03:52]} 17. Bxd6 {[%emt 0:00:41]} exf3 {[%emt 0:00:09]} 18. gxf3 {[%emt 0:00:26]} Rf7 {[%emt 0:01:32]} 19. Qc7 {[%emt 0:04:30]} Nb6 {[%emt 0:05:14]} 20. Qc2 {[%emt 0:07:19]} Bd7 {[%emt 0:01:46]} 21. e4 {[%emt 0:05:21]} Bc6 {[%emt 0:03:28]} 22. Nc3 {[%emt 0:01:34]} Rc8 {[%emt 0:01:58]} 23. Qe2 {[%emt 0:02:48]} Rd8 {[%emt 0:03:13]} 24. Bc5 {[%emt 0:00:45]} Qh5 {[%emt 0:02:49]} 25. Bxb6 {[%emt 0:03:45]} axb6 {[%emt 0:00:07]} 26. d5 {[%emt 0:00:07]} exd5 27. exd5 Bd7 {[%emt 0:03:06]} 28. Kh1 {[%emt 0:04:13]} Rg7 {[%emt 0:01:18]} 29. Rg1 {[%emt 0:01:22]} Re8 {[%emt 0:01:07]} 30. Qd3 {[%emt 0:01:39]} Qf7 {[%emt 0:01:19]} 31. Rce1 {[%emt 0:01:51]} g4 {[%emt 0:01:43]} 32. f4 {[%emt 0:00:58]} Qf6 {[%emt 0:00:41]} 33. Rxe8+ {[%emt 0:01:31]} Bxe8 {[%emt 0:00:01]} 34. Re1 {[%emt 0:01:37]} Bd7 {[%emt 0:00:17]} 35. Qe3 {[%emt 0:00:59]} b5 {[%emt 0:01:04]} 36. b3 {[%emt 0:02:41]} Qa6 {[%emt 0:01:24]} 37. Qd2 {[%emt 0:03:20]} b4 {[%emt 0:00:37]} 38. Nd1 {[%emt 0:01:41]} Qd6 {[%emt 0:00:28]} 39. Qd4 {[%emt 0:02:09]} Re7 {[%emt 0:00:40]} 40. Rxe7 {[%emt 0:01:28]} Qxe7 {[%emt 0:00:01]} 41. Ne3 b5 {[%emt 0:03:15]} 42. Qe5 {[%emt 0:05:29]} Qf7 {[%emt 0:02:49]} 43. Qd6 {[%emt 0:03:42]} h5 {[%emt 0:08:16]} 44. Qxb4 {[%emt 0:04:22]} h4 {[%emt 0:00:35]} 45. Qd4 {[%emt 0:03:37]} Qh5 {[%emt 0:03:06]} 46. Qf6 {[%emt 0:02:48]} g3 {[%emt 0:05:08]} 47. Qd8+ {[%emt 0:02:27]} Be8 {[%emt 0:00:30]} 48. Qg5+ {[%emt 0:02:32]} Qxg5 {[%emt 0:00:20]} 49. fxg5 {[%emt 0:00:01]} f4 {[%emt 0:00:31]} 50. Ng4 {[%emt 0:00:42]} Kg7 {[%emt 0:03:23]} 51. hxg3 {[%emt 0:00:29]} hxg3 {[%emt 0:00:24]} 52. fxg3 {[%emt 0:00:08]} fxg3 {[%emt 0:00:07]} 53. Ne5 {[%emt 0:01:17]} Bh5 {[%emt 0:01:32]} 54. d6 {[%emt 0:00:28]} Kf8 {[%emt 0:00:30]} 55. d7 {[%emt 0:00:12]} Ke7 {[%emt 0:00:03]} 56. g6 {[%emt 0:00:20]} Bxg6 {[%emt 0:00:24]} 57. Nxg6+ {[%emt 0:00:01]} Kxd7 {[%emt 0:00:02]} 58. Ne5+ {[%emt 0:01:09]} Kd6 {[%emt 0:00:36]} 59. Nd3 {[%emt 0:00:06]} Kd5 {[%emt 0:00:28]} 60. a4 {[%emt 0:00:26]} bxa4 {[%emt 0:01:45]} 61. bxa4 {[%emt 0:00:02]} Kc4 {[%emt 0:00:19]} 62. Kg2 {[%emt 0:00:16]} 1-0

[Event "EYTCC U12 Open 2019"]
[Site "Pardubice"]
[Date "2019.07.14"]
[Round "4.22"]
[White "Winter, Ondrej"]
[Black "Skrbec, Leon"]
[Result "1/2-1/2"]
[ECO "B11"]
[WhiteElo "1725"]
[BlackElo "1896"]
[Annotator "NA"]
[PlyCount "96"]
[EventDate "2019.07.11"]
[EventType "swiss"]
[EventCountry "CZE"]
[SourceTitle "playchess.com"]
[Source "ChessBase"]
[SourceQuality "1"]
[WhiteTeam "Czech Republic"]
[BlackTeam "Slovenia"]
[WhiteTeamCountry "CZE"]
[BlackTeamCountry "SLO"]
[TimeControl "40/5400+30:1800+30"]

1. e4 {[%emt 0:00:00]} c6 {[%emt 0:00:00]} 2. Nc3 {[%emt 0:00:00]} d5 {[%emt 0:00:00]} 3. Nf3 {[%emt 0:00:00]} Bg4 {[%emt 0:00:03]} 4. d4 {[%emt 0:01:05]} e6 {[%emt 0:01:21]} 5. Bd3 {[%emt 0:00:29]} Nf6 {[%emt 0:01:02]} 6. O-O {[%emt 0:01:50]} Be7 {[%emt 0:00:28]} 7. h3 {[%emt 0:00:50]} Bh5 {[%emt 0:01:44]} 8. Be3 {[%emt 0:00:34]} O-O {[%emt 0:01:08]} 9. Re1 {[%emt 0:01:53]} Bg6 {[%emt 0:01:05]} 10. e5 {[%emt 0:02:26]} Nfd7 {[%emt 0:00:13]} 11. Ne2 {[%emt 0:00:53]} c5 {[%emt 0:01:00]} 12. c3 {[%emt 0:00:50]} Nc6 {[%emt 0:00:13]} 13. Nf4 {[%emt 0:04:29]} Qb6 {[%emt 0:02:26]} 14. Nxg6 {[%emt 0:01:41]} hxg6 {[%emt 0:00:07]} 15. Qe2 {[%emt 0:06:19]} cxd4 {[%emt 0:03:31]} 16. cxd4 {[%emt 0:00:23]} Rac8 {[%emt 0:03:24]} 17. Rac1 {[%emt 0:03:11]} Rc7 {[%emt 0:08:13]} 18. Rc2 {[%emt 0:09:02]} Rfc8 {[%emt 0:00:13]} 19. Rec1 {[%emt 0:00:16]} Nb4 {[%emt 0:00:15]} 20. Rxc7 {[%emt 0:00:27]} Rxc7 {[%emt 0:00:05]} 21. Rxc7 {[%emt 0:00:08]} Qxc7 {[%emt 0:00:08]} 22. a3 {[%emt 0:00:57]} Nxd3 {[%emt 0:00:49]} 23. Qxd3 {[%emt 0:00:13]} Nb6 {[%emt 0:02:07]} 24. Bd2 {[%emt 0:06:49]} Nc4 {[%emt 0:02:16]} 25. Bc3 {[%emt 0:04:52]} b5 {[%emt 0:00:35]} 26. Nd2 {[%emt 0:02:36]} Nxd2 {[%emt 0:02:24]} 27. Bxd2 {[%emt 0:01:30]} a6 {[%emt 0:01:27]} 28. Qc3 {[%emt 0:01:47]} Qxc3 {[%emt 0:01:17]} 29. Bxc3 {[%emt 0:00:35]} f6 {[%emt 0:00:30]} 30. f4 {[%emt 0:02:25]} g5 {[%emt 0:02:17]} 31. exf6 {[%emt 0:02:21]} Bxf6 {[%emt 0:00:35]} 32. fxg5 {[%emt 0:00:38]} Bxg5 {[%emt 0:00:06]} 33. Kf2 {[%emt 0:00:09]} Kf7 {[%emt 0:01:31]} 34. Ke2 {[%emt 0:02:31]} Bf4 {[%emt 0:03:28]} 35. Bd2 {[%emt 0:02:55]} Bd6 {[%emt 0:00:51]} 36. Kf3 {[%emt 0:04:09]} Kf6 {[%emt 0:05:05]} 37. g3 {[%emt 0:04:56]} Bc7 {[%emt 0:04:29]} 38. Bf4 {[%emt 0:05:20]} Ba5 {[%emt 0:04:08]} 39. Be5+ {[%emt 0:00:59]} Kg6 {[%emt 0:00:10]} 40. Kg4 {[%emt 0:01:04]} Bd2 {[%emt 0:00:52]} 41. b3 {[%emt 0:32:19]} Bc1 {[%emt 0:32:10]} 42. a4 {[%emt 0:00:33]} Bd2 {[%emt 0:00:35]} 43. h4 {[%emt 0:06:39]} Be1 {[%emt 0:05:12]} 44. Bf4 {[%emt 0:08:48]} Bf2 {[%emt 0:01:56]} 45. Be5 {[%emt 0:01:29]} Be1 {[%emt 0:00:16]} 46. Bf4 {[%emt 0:00:55]} Bf2 {[%emt 0:00:06]} 47. Be5 {[%emt 0:00:04]} Be1 {[%emt 0:00:04]} 48. Bf4 {[%emt 0:00:18]} Bf2 {[%emt 0:00:05]} 1/2-1/2

[Event "EYTCC U12 Open 2019"]
[Site "Pardubice"]
[Date "2019.07.14"]
[Round "4.23"]
[White "Gregoric, Andraz"]
[Black "Hladky, Tadeas"]
[Result "0-1"]
[ECO "C06"]
[WhiteElo "1911"]
[BlackElo "1638"]
[Annotator "NA"]
[PlyCount "66"]
[EventDate "2019.07.11"]
[EventType "swiss"]
[EventCountry "CZE"]
[SourceTitle "playchess.com"]
[Source "ChessBase"]
[SourceQuality "1"]
[WhiteTeam "Slovenia"]
[BlackTeam "Czech Republic"]
[WhiteTeamCountry "SLO"]
[BlackTeamCountry "CZE"]
[TimeControl "40/5400+30:1800+30"]

1. e4 {[%emt 0:00:00]} e6 {[%emt 0:00:00]} 2. d4 {[%emt 0:00:00]} d5 {[%emt 0:00:00]} 3. Nd2 {[%emt 0:00:00]} Nf6 {[%emt 0:00:00]} 4. e5 {[%emt 0:00:00]} Nfd7 {[%emt 0:00:00]} 5. Bd3 {[%emt 0:00:06]} c5 {[%emt 0:00:00]} 6. c3 {[%emt 0:00:05]} cxd4 {[%emt 0:00:00]} 7. cxd4 {[%emt 0:00:07]} Nc6 {[%emt 0:00:24]} 8. Ne2 {[%emt 0:00:57]} f6 {[%emt 0:00:05]} 9. exf6 {[%emt 0:00:06]} Qxf6 {[%emt 0:00:05]} 10. Nf3 {[%emt 0:01:21]} Bd6 {[%emt 0:00:06]} 11. Bg5 {[%emt 0:01:27]} Qf7 {[%emt 0:00:12]} 12. a3 {[%emt 0:03:37]} O-O {[%emt 0:00:20]} 13. Qc2 {[%emt 0:04:10]} Nf6 {[%emt 0:07:19]} 14. Be3 {[%emt 0:11:37]} h6 {[%emt 0:01:19]} 15. h3 {[%emt 0:13:13]} Rd8 {[%emt 0:00:39]} 16. g4 {[%emt 0:06:06]} Nxg4 {[%emt 0:05:13]} 17. hxg4 {[%emt 0:00:22]} Qxf3 {[%emt 0:00:07]} 18. O-O-O {[%emt 0:02:53]} Bd7 {[%emt 0:05:54]} 19. g5 {[%emt 0:05:54]} h5 {[%emt 0:07:26]} 20. Rh4 {[%emt 0:09:39]} Rac8 {[%emt 0:03:04]} 21. Nc3 {[%emt 0:01:00]} Be8 {[%emt 0:16:28]} 22. Rdh1 {[%emt 0:06:16]} Ne7 {[%emt 0:05:48]} 23. R4h3 {[%emt 0:06:38]} Qg2 {[%emt 0:09:28]} 24. Bf1 {[%emt 0:02:54]} Qg4 {[%emt 0:00:36]} 25. f3 {[%emt 0:02:38]} Qf5 {[%emt 0:01:17]} 26. Bd3 {[%emt 0:00:08]} Qf7 {[%emt 0:01:05]} 27. Bh7+ {[%emt 0:02:52]} Kf8 {[%emt 0:00:30]} 28. g6 {[%emt 0:09:45]} Nxg6 {[%emt 0:03:40]} 29. Kb1 {[%emt 0:00:18]} Nf4 {[%emt 0:01:39]} 30. Bxf4 {[%emt 0:00:58]} Qxf4 {[%emt 0:00:23]} 31. Rh4 {[%emt 0:03:40]} Qf6 {[%emt 0:00:32]} 32. Qd3 {[%emt 0:03:11]} g6 {[%emt 0:11:58]} 33. R4h3 {[%emt 0:02:26]} Rc7 {[%emt 0:00:33]} 0-1

[Event "EYTCC U12 Open 2019"]
[Site "Pardubice"]
[Date "2019.07.14"]
[Round "4.24"]
[White "Mohapl, Tomas"]
[Black "Olenik Campa, Rudi"]
[Result "1-0"]
[ECO "C11"]
[WhiteElo "1585"]
[BlackElo "1854"]
[Annotator "NA"]
[PlyCount "41"]
[EventDate "2019.07.11"]
[EventType "swiss"]
[EventCountry "CZE"]
[SourceTitle "playchess.com"]
[Source "ChessBase"]
[SourceQuality "1"]
[WhiteTeam "Czech Republic"]
[BlackTeam "Slovenia"]
[WhiteTeamCountry "CZE"]
[BlackTeamCountry "SLO"]
[TimeControl "40/5400+30:1800+30"]

1. e4 {[%emt 0:00:00]} e6 {[%emt 0:00:00]} 2. d4 {[%emt 0:00:00]} d5 {[%emt 0:00:00]} 3. Nc3 {[%emt 0:00:17]} Nf6 {[%emt 0:00:00]} 4. e5 {[%emt 0:00:47]} Nfd7 {[%emt 0:00:00]} 5. f4 {[%emt 0:01:02]} c5 {[%emt 0:00:02]} 6. Nf3 {[%emt 0:00:53]} Nc6 {[%emt 0:00:05]} 7. Be3 {[%emt 0:01:45]} a6 {[%emt 0:00:14]} 8. Qd2 {[%emt 0:01:22]} b5 {[%emt 0:00:06]} 9. dxc5 {[%emt 0:01:22]} Nxc5 {[%emt 0:00:40]} 10. Qf2 {[%emt 0:05:04]} Nd7 {[%emt 0:08:59]} 11. Bd3 {[%emt 0:08:09]} Be7 {[%emt 0:07:07]} 12. O-O {[%emt 0:04:44]} O-O {[%emt 0:02:03]} 13. Kh1 {[%emt 0:18:38]} f6 {[%emt 0:03:52]} 14. Qh4 {[%emt 0:09:06]} h6 {[%emt 0:10:34]} 15. Qg3 {[%emt 0:10:56]} f5 {[%emt 0:04:48]} 16. Qg6 {[%emt 0:11:22]} Ndb8 {[%emt 0:04:27]} 17. g4 {[%emt 0:07:55]} Kh8 {[%emt 0:14:40]} 18. Rg1 {[%emt 0:05:53]} Rg8 {[%emt 0:07:24]} 19. gxf5 {[%emt 0:02:43]} exf5 {[%emt 0:00:11]} 20. Nd4 {[%emt 0:01:10]} Bb7 {[%emt 0:01:05]} 21. Bxf5 {[%emt 0:00:31]} 1-0

[Event "EYTCC U12 Open 2019"]
[Site "Pardubice"]
[Date "2019.07.15"]
[Round "5.1"]
[White "Maurizzi, Marc Andria"]
[Black "Tancsa, Tamas"]
[Result "1-0"]
[ECO "C55"]
[WhiteElo "2412"]
[BlackElo "2126"]
[Annotator "NA"]
[PlyCount "49"]
[EventDate "2019.07.11"]
[EventType "swiss"]
[EventCountry "CZE"]
[SourceTitle "playchess.com"]
[Source "ChessBase"]
[SourceQuality "1"]
[WhiteTeam "France"]
[BlackTeam "Hungary"]
[WhiteTeamCountry "FRA"]
[BlackTeamCountry "HUN"]
[TimeControl "40/5400+30:1800+30"]

1. e4 {[%emt 0:00:00]} e5 {[%emt 0:00:00]} 2. Nf3 {[%emt 0:00:00]} Nc6 {[%emt 0:00:00]} 3. Bc4 {[%emt 0:00:00]} Nf6 {[%emt 0:00:00]} 4. d3 {[%emt 0:00:00]} Be7 {[%emt 0:00:01]} 5. O-O {[%emt 0:00:00]} O-O {[%emt 0:00:06]} 6. Re1 {[%emt 0:00:02]} d6 {[%emt 0:00:06]} 7. a3 {[%emt 0:00:04]} Na5 {[%emt 0:00:07]} 8. Ba2 {[%emt 0:00:08]} c5 {[%emt 0:00:04]} 9. b4 {[%emt 0:00:03]} Nc6 {[%emt 0:03:03]} 10. bxc5 {[%emt 0:00:24]} dxc5 {[%emt 0:00:17]} 11. h3 {[%emt 0:01:02]} h6 {[%emt 0:01:18]} 12. Nbd2 {[%emt 0:13:15]} Re8 {[%emt 0:04:35]} 13. Nc4 {[%emt 0:05:35]} Bf8 {[%emt 0:00:56]} 14. Bb2 {[%emt 0:00:30]} Qc7 {[%emt 0:02:20]} 15. Ne3 {[%emt 0:03:49]} Bd7 {[%emt 0:09:49]} 16. Nh2 {[%emt 0:14:43]} Ne7 {[%emt 0:13:27]} 17. Nhg4 {[%emt 0:01:34]} Nxg4 {[%emt 0:02:54]} 18. hxg4 {[%emt 0:00:17]} Ng6 {[%emt 0:01:11]} 19. g3 {[%emt 0:06:17]} Qc8 {[%emt 0:17:57]} 20. g5 {[%emt 0:26:38]} hxg5 {[%emt 0:03:16]} 21. Qh5 {[%emt 0:00:10]} Be6 {[%emt 0:00:06]} 22. Kg2 {[%emt 0:02:53]} Ne7 {[%emt 0:09:39]} 23. Rh1 {[%emt 0:07:34]} f6 {[%emt 0:01:11]} 24. Ng4 {[%emt 0:00:26]} Bxa2 {[%emt 0:01:56]} 25. Nxf6+ {[%emt 0:00:21]} 1-0